bitfinex-derivatives/quotes_ETHF0:USTF0_20260308
["timestamp","ask_amount","ask_price","bid_price","bid_amount"]
[1772972155698,0.96882316,1928.8,1926.9,0.00559899]
[1772972155903,0.96311076,1928.4,1925.6,6.85515028]
[1772972156208,0.96311076,1928.2,1925.8,6.85515028]
[1772972156403,0.96311076,1928.2,1924.9,14.92700595]
[1772972156404,0.96311076,1928.1,1926.0,6.85515028]
[1772972156902,5.77307687,1928.0,1926.2,7.0784783]
[1772972157103,0.50847795,1927.8,1926.4,7.0784783]
[1772972157308,0.51469375,1927.8,1926.1,5.27406796]
[1772972157504,0.50847795,1927.6,1926.0,0.00586855]
[1772972157706,0.50847795,1927.6,1926.0,7.08434685]
[1772972157901,5.70393777,1927.5,1926.0,7.08434685]
[1772972158105,0.0062158,1927.8,1926.2,7.07786564]
[1772972158311,0.0062158,1927.8,1926.2,3.77266564]
[1772972158605,5.91097072,1927.7,1926.4,6.16765688]
[1772972159102,4.609265,1927.8,1926.6,6.16765688]
[1772972159303,10.06421681,1927.7,1926.6,6.16765688]
[1772972159508,4.6030492,1927.6,1926.6,6.16765688]
[1772972160008,10.26860596,1927.5,1926.6,6.16765688]
[1772972160303,5.98110542,1927.6,1926.3,6.16765688]
[1772972160601,4.80036711,1927.3,1926.0,6.17352543]
[1772972160802,5.54722556,1927.1,1926.0,0.00586855]
[1772972161002,5.54135701,1926.9,1925.3,6.16765688]
[1772972161398,11.367006,1926.8,1925.5,6.16765688]
[1772972161604,5.54135701,1926.7,1925.4,5.81269688]
[1772972161810,5.82564899,1926.9,1925.0,6.16765688]
[1772972162002,5.56055006,1927.3,1925.6,6.16765688]
[1772972162199,5.82208026,1926.8,1925.8,6.16765688]
[1772972162400,5.82208026,1927.3,1925.8,6.16765688]
[1772972162599,5.56055006,1927.6,1926.0,7.11916933]
[1772972162809,5.62721472,1927.4,1926.2,7.11916933]
[1772972163008,5.63343052,1927.8,1926.2,7.11916933]
[1772972163205,5.97316799,1927.3,1926.4,7.11916933]
[1772972163511,0.0062158,1927.8,1926.6,7.11916933]
[1772972163803,0.0062158,1927.8,1926.8,7.11916933]
[1772972164004,0.0062158,1927.8,1927.0,6.91698795]
[1772972164205,5.64157817,1929.1,1927.0,6.91698795]
[1772972164405,5.64157817,1929.1,1927.2,6.91698795]
[1772972164599,11.18974194,1929.1,1927.2,6.91698795]
[1772972164801,5.85547547,1929.4,1927.4,6.91698795]
[1772972165001,5.85547547,1929.2,1927.6,6.91698795]
[1772972165205,5.53083327,1929.0,1927.8,6.91698795]
[1772972165405,0.25922,1928.9,1927.8,6.92117201]
[1772972165609,5.79005327,1928.9,1927.8,6.92117201]
[1772972165820,5.84689753,1928.8,1927.8,0.00418406]
[1772972166004,5.84718772,1928.6,1927.5,6.91698795]
[1772972166310,5.84718772,1927.9,1925.8,6.91698795]
[1772972166509,5.84718772,1927.9,1926.0,6.91698795]
[1772972166711,0.25934,1928.0,1926.2,6.91698795]
[1772972166712,5.83839361,1927.7,1926.2,6.91698795]
[1772972167110,5.89188843,1927.3,1926.2,6.92287101]
[1772972167306,5.88600537,1926.7,1924.3,6.91698795]
[1772972167505,5.88600537,1926.6,1924.8,6.91698795]
[1772972167708,5.87680388,1926.5,1924.8,6.91698795]
[1772972167906,11.73120626,1926.8,1925.0,6.91698795]
[1772972168114,7.28048555,1927.3,1925.2,6.91698795]
[1772972168316,5.85054629,1927.2,1925.4,6.91698795]
[1772972168510,7.02104555,1927.4,1925.4,6.91698795]
[1772972168816,5.85054629,1927.3,1925.6,6.91698795]
[1772972169116,5.74210879,1927.3,1925.8,6.91698795]
[1772972169310,7.02104555,1927.2,1925.8,6.91698795]
[1772972169510,5.74210879,1927.3,1925.8,6.91698795]
[1772972169810,7.02104555,1927.0,1926.0,6.91698795]
[1772972170009,7.02104555,1927.0,1925.2,0.00503534]
[1772972170211,7.02104555,1926.8,1925.4,6.91698795]
[1772972170411,0.00392446,1927.7,1925.3,21.36619636]
[1772972170412,7.02497001,1927.7,1925.6,6.91698795]
[1772972170715,5.4559838,1927.6,1926.0,6.91698795]
[1772972170910,7.02104555,1928.3,1926.4,6.91698795]
[1772972171116,6.758,1929.0,1926.6,6.91698795]
[1772972171117,7.02104555,1928.6,1926.6,6.91698795]
[1772972171314,5.51795794,1928.3,1926.8,6.91698795]
[1772972171608,7.02104555,1928.6,1926.8,6.91698795]
[1772972171816,7.02104555,1928.6,1927.0,6.91698795]
[1772972172005,7.02104555,1928.3,1927.1,6.91698795]
[1772972172208,5.60501783,1928.5,1927.1,12.31872251]
[1772972172411,0.00572036,1928.6,1927.2,6.91698795]
[1772972172613,0.00572036,1928.6,1927.4,6.91698795]
[1772972173012,0.00572036,1928.6,1927.6,6.91698795]
[1772972173207,0.00572036,1928.6,1927.8,6.91698795]
[1772972173709,0.00572036,1928.6,1927.9,6.91698795]
[1772972174316,12.52427452,1928.5,1927.6,6.91698795]
[1772972174512,7.02104555,1928.4,1927.3,6.91698795]
[1772972174714,7.02104555,1927.7,1927.1,5.93958695]
[1772972174918,7.02104555,1928.2,1927.0,6.92371002]
[1772972175317,5.54713646,1927.7,1927.0,6.92371002]
[1772972175519,7.02104555,1928.0,1927.0,6.92371002]
[1772972175717,2.5952,1927.8,1927.0,6.92371002]
[1772972175921,7.02104555,1927.8,1927.0,6.92371002]
[1772972176122,9.4209894,1927.7,1927.0,0.00672207]
[1772972176418,7.02104555,1927.7,1927.0,0.00672207]
[1772972176717,2.5952,1927.1,1926.1,6.91698795]
[1772972176917,12.83522794,1927.6,1926.1,6.91698795]
[1772972177113,7.02104555,1927.6,1926.2,6.91698795]
[1772972177310,5.81418239,1927.5,1926.2,6.91698795]
[1772972177513,7.02104555,1927.9,1926.4,6.91698795]
[1772972177709,7.02756676,1927.9,1926.4,6.92199633]
[1772972177914,7.02756676,1927.9,1926.6,6.91698795]
[1772972177915,13.01360234,1927.8,1926.6,6.91698795]
[1772972178110,0.00652121,1927.9,1926.8,6.91698795]
[1772972178317,5.7438719,1927.7,1926.8,6.91698795]
[1772972178518,7.02104555,1927.7,1926.8,6.91698795]
[1772972178716,0.25928,1928.5,1926.5,16.749]
[1772972178717,7.02104555,1929.4,1927.2,6.91698795]
[1772972178926,7.02104555,1929.2,1927.4,6.91698795]
[1772972179115,7.02104555,1928.9,1927.4,6.91698795]
[1772972179316,7.02104555,1928.9,1927.6,6.91698795]
[1772972179713,7.02104555,1928.9,1927.8,6.91698795]
[1772972179916,7.02104555,1928.9,1927.8,6.92161975]
[1772972180122,7.28029555,1928.7,1926.8,6.91698795]
[1772972180425,7.02104555,1928.5,1926.8,6.91698795]
[1772972180722,7.02104555,1928.3,1926.8,6.91698795]
[1772972181115,12.53956793,1928.4,1926.8,6.91698795]
[1772972181116,12.83556047,1928.2,1926.8,6.91698795]
[1772972181322,7.02104555,1928.6,1927.0,6.91698795]
[1772972181521,5.81451492,1928.3,1927.0,6.91698795]
[1772972181818,7.02104555,1928.3,1927.2,6.91698795]
[1772972182020,5.50972337,1928.2,1927.2,6.91698795]
[1772972182220,2.5952,1928.5,1927.2,6.91698795]
[1772972182420,12.53076892,1928.6,1927.2,6.91698795]
[1772972182623,5.50972337,1928.4,1927.2,6.91698795]
[1772972182822,8.10492337,1928.5,1927.2,6.91698795]
[1772972183018,5.50972337,1928.5,1927.2,6.91698795]
[1772972183224,7.02468298,1928.9,1927.4,6.91698795]
[1772972183523,5.55362619,1928.8,1927.6,6.91698795]
[1772972184018,7.02104555,1928.7,1927.6,6.91698795]
[1772972184429,0.00363743,1928.9,1927.6,6.91698795]
[1772972184628,0.00363743,1928.9,1927.4,40.8]
[1772972184629,0.00363743,1928.9,1927.8,6.91698795]
[1772972185328,12.57774067,1928.8,1927.6,6.91698795]
[1772972185718,7.02104555,1928.8,1927.7,6.91698795]
[1772972185923,0.00363743,1928.9,1927.7,6.91698795]
[1772972186125,2.5952,1928.8,1927.7,6.91698795]
[1772972186325,0.00363743,1928.9,1927.7,6.91698795]
[1772972186931,0.00363743,1928.9,1927.6,58.566]
[1772972186932,0.00363743,1928.9,1927.9,6.91698795]
[1772972187222,7.02468298,1928.9,1927.9,6.91698795]
[1772972187419,7.02104555,1929.4,1928.1,6.91698795]
[1772972187832,7.02104555,1928.9,1927.9,6.91698795]
[1772972188528,2.5952,1928.7,1927.9,6.91698795]
[1772972188724,0.00514702,1928.9,1927.9,6.91698795]
[1772972188930,7.02104555,1929.4,1928.1,6.91698795]
[1772972189329,0.25907,1930.1,1928.3,6.91698795]
[1772972189330,7.02104555,1929.7,1928.3,6.91698795]
[1772972189826,5.66489244,1929.6,1928.5,6.91698795]
[1772972190028,7.02720533,1929.6,1928.4,5.60932435]
[1772972190324,7.02104555,1928.6,1927.2,6.91698795]
[1772972190731,5.42361691,1928.5,1927.2,6.91698795]
[1772972190926,6.755,1929.2,1927.4,6.91698795]
[1772972191124,7.02104555,1929.1,1927.4,6.91698795]
[1772972191321,7.02104555,1928.9,1927.6,6.91698795]
[1772972191732,2.5952,1928.5,1927.6,6.91698795]
[1772972191929,7.02104555,1928.7,1927.6,6.91698795]
[1772972192330,2.5952,1928.6,1927.6,6.91698795]
[1772972192532,7.02104555,1929.0,1927.6,6.91698795]
[1772972192723,2.5952,1928.7,1927.6,6.91698795]
[1772972193122,5.80035029,1928.6,1927.6,6.91698795]
[1772972193533,7.81810264,1928.7,1927.6,6.91698795]
[1772972193738,7.81810264,1929.0,1927.6,6.91698795]
[1772972193935,7.81810264,1929.0,1927.8,8.28259144]
[1772972194137,5.60476575,1928.6,1927.5,8.28259144]
[1772972194335,13.42286839,1928.9,1927.6,8.28259144]
[1772972194537,7.81810264,1928.9,1927.6,8.28259144]
[1772972194838,7.81810264,1928.9,1927.8,8.28259144]
[1772972195037,7.81810264,1928.7,1927.8,8.28259144]
[1772972195239,2.5952,1928.6,1927.8,8.28259144]
[1772972195435,7.81810264,1928.7,1927.8,8.28259144]
[1772972195739,2.5952,1928.3,1927.8,8.28259144]
[1772972196135,7.81810264,1928.7,1927.8,8.28259144]
[1772972196435,2.5952,1928.3,1927.8,8.28259144]
[1772972196938,7.81810264,1929.0,1927.8,8.28259144]
[1772972197335,7.81810264,1928.5,1927.8,8.28259144]
[1772972198237,7.81810264,1929.0,1927.8,8.28259144]
[1772972198438,7.81810264,1928.8,1927.8,8.28259144]
[1772972198838,13.27645947,1928.7,1927.8,8.28259144]
[1772972199237,7.81810264,1928.7,1927.8,8.28259144]
[1772972200737,7.81810264,1929.2,1927.8,8.28259144]
[1772972200938,7.81810264,1929.0,1927.8,8.28259144]
[1772972202342,7.81810264,1929.5,1927.8,8.28259144]
[1772972202535,7.81810264,1929.5,1928.1,8.28259144]
[1772972202734,13.41455932,1929.5,1928.3,8.28259144]
[1772972202934,7.81810264,1929.5,1928.3,8.28259144]
[1772972203140,5.681627,1929.4,1928.5,8.28259144]
[1772972203539,7.82426242,1929.6,1928.5,8.28259144]
[1772972204641,7.82426242,1929.6,1928.7,8.28259144]
[1772972205538,0.00615978,1929.6,1928.7,8.28259144]
[1772972205737,0.00615978,1929.6,1928.9,8.28259144]
[1772972205938,0.00615978,1929.6,1928.9,8.28751379]
[1772972209043,7.81810264,1930.7,1929.4,0.25916]
[1772972209242,7.81810264,1931.1,1929.5,8.28259144]
[1772972209443,13.36244659,1931.0,1929.7,8.28259144]
[1772972209644,7.81810264,1930.9,1929.6,8.28259144]
[1772972209844,7.81810264,1930.9,1929.3,18.549]
[1772972209845,0.00642596,1930.9,1929.9,8.28259144]
[1772972210247,0.81214286,1931.2,1930.1,8.28259144]
[1772972210547,8.6302455,1931.2,1930.3,8.28259144]
[1772972210740,5.8917313,1931.1,1930.0,8.28259144]
[1772972210945,7.81810264,1931.0,1930.0,8.28259144]
[1772972211343,7.82235508,1931.0,1930.0,8.28734374]
[1772972211547,0.00425244,1931.0,1930.0,8.28734374]
[1772972212249,7.82235508,1931.0,1930.0,8.28734374]
[1772972212648,7.81810264,1930.8,1930.0,8.28734374]
[1772972213050,7.82235508,1931.0,1930.0,8.28734374]
[1772972214647,7.81810264,1930.8,1930.0,0.0047523]
[1772972215049,5.72802523,1930.7,1929.4,8.28259144]
[1772972215246,7.81810264,1930.6,1929.4,8.28259144]
[1772972215545,7.81810264,1930.4,1929.4,8.28259144]
[1772972215741,7.81810264,1930.3,1928.8,8.28259144]
[1772972215948,13.54612787,1930.3,1929.1,8.28259144]
[1772972216147,7.81810264,1930.3,1929.1,8.28259144]
[1772972216347,7.81810264,1930.3,1929.2,5.59625304]
[1772972216548,7.81810264,1930.3,1929.3,8.28259144]
[1772972216750,5.7717394,1930.2,1929.3,8.28259144]
[1772972216942,7.81810264,1930.6,1929.4,5.59625304]
[1772972217145,7.81810264,1930.6,1929.5,8.28259144]
[1772972217752,5.72821308,1930.5,1929.5,8.28259144]
[1772972218052,7.81810264,1930.8,1929.5,8.28259144]
[1772972218251,7.81810264,1930.8,1929.7,8.28259144]
[1772972218458,7.81810264,1930.8,1929.8,8.28259144]
[1772972218858,0.00425244,1931.0,1929.9,5.87957556]
[1772972219157,7.82235508,1931.0,1930.0,8.28259144]
[1772972219359,0.00425244,1931.0,1930.0,8.28259144]
[1772972219861,13.7315334,1930.9,1930.0,8.28259144]
[1772972220060,7.81810264,1930.9,1930.0,8.28259144]
[1772972220359,0.00425244,1931.0,1930.0,8.28259144]
[1772972220556,0.00425244,1931.0,1930.2,8.28259144]
[1772972220756,0.00425244,1931.0,1930.2,8.28674325]
[1772972221152,7.82235508,1931.0,1930.2,8.28674325]
[1772972221358,7.81810264,1930.8,1930.2,0.00415181]
[1772972222556,5.63117457,1930.7,1929.5,8.09032756]
[1772972222862,0.00425244,1931.0,1930.0,8.09032756]
[1772972223658,8.13320339,1931.0,1930.0,8.09403366]
[1772972223861,8.13320339,1931.0,1930.1,8.09032756]
[1772972224260,7.76625505,1930.8,1930.1,8.09032756]
[1772972225367,7.77050749,1931.0,1930.1,8.09032756]
[1772972225665,0.00425244,1931.0,1930.1,8.09032756]
[1772972226364,0.81214286,1931.2,1930.1,8.09032756]
[1772972227261,0.81583992,1931.2,1930.1,8.09032756]
[1772972227467,7.76625505,1931.0,1930.1,8.09032756]
[1772972227867,0.81583992,1931.2,1930.3,8.1427557]
[1772972228562,7.76625505,1931.6,1930.5,8.1427557]
[1772972228865,7.76625505,1931.5,1930.5,8.1427557]
[1772972229468,7.77086271,1931.5,1930.5,8.1427557]
[1772972230969,7.76625505,1931.4,1930.5,8.1427557]
[1772972231169,0.00460766,1931.5,1930.5,8.1427557]
[1772972231368,7.77086271,1931.5,1930.5,8.1427557]
[1772972233071,7.76625505,1932.0,1930.7,8.1427557]
[1772972233269,7.76625505,1932.0,1930.9,8.1427557]
[1772972233464,7.76625505,1931.7,1930.9,8.1427557]
[1772972234264,7.76995373,1931.7,1930.9,8.1427557]
[1772972234664,7.76625505,1931.6,1930.4,8.1427557]
[1772972234865,7.76625505,1931.5,1930.4,8.1427557]
[1772972235366,7.76625505,1931.3,1930.1,8.1427557]
[1772972235770,20.07716323,1931.2,1930.1,8.1427557]
[1772972235964,7.76625505,1931.1,1930.1,8.1427557]
[1772972236164,7.76625505,1931.1,1930.0,0.0037061]
[1772972236370,7.76625505,1930.9,1930.0,0.0037061]
[1772972236571,7.76625505,1930.7,1930.0,0.0037061]
[1772972237577,6.7717861,1930.5,1930.0,0.0037061]
[1772972237767,6.7717861,1930.5,1929.5,18.182]
[1772972237973,7.76625505,1930.3,1929.5,8.1427557]
[1772972238175,12.60069353,1930.4,1929.5,8.1427557]
[1772972238176,7.76625505,1930.1,1929.5,8.1427557]
[1772972238875,7.77270735,1930.1,1929.5,8.14791813]
[1772972239476,0.0064523,1930.1,1929.5,8.14791813]
[1772972241175,7.77270735,1930.1,1929.3,8.1427557]
[1772972241379,7.76625505,1929.9,1929.1,8.1427557]
[1772972241880,5.47800922,1929.8,1929.1,8.1427557]
[1772972242076,13.24426427,1929.8,1929.1,8.1427557]
[1772972242276,13.24426427,1929.8,1929.1,0.00627788]
[1772972242277,7.76625505,1929.7,1929.1,0.00627788]
[1772972242475,7.76625505,1929.5,1929.1,0.00627788]
[1772972242678,7.76625505,1929.5,1928.6,8.1427557]
[1772972243177,5.50845394,1929.4,1928.6,8.1427557]
[1772972243378,6.76,1929.8,1928.6,8.1427557]
[1772972243578,7.76625505,1929.7,1928.6,8.14935392]
[1772972243774,13.29116986,1929.7,1928.6,8.14935392]
[1772972245378,5.52491481,1929.7,1928.6,8.14935392]
[1772972245578,6.7674523,1930.1,1928.8,8.1427557]
[1772972245579,0.0064523,1930.1,1928.8,8.1427557]
[1772972245780,0.0064523,1930.1,1929.0,8.1427557]
[1772972246078,14.52725505,1930.8,1929.2,8.1427557]
[1772972246478,7.76625505,1930.7,1929.4,8.1427557]
[1772972246673,7.76625505,1931.0,1929.4,8.1427557]
[1772972246985,7.76625505,1930.9,1929.6,8.1427557]
[1772972247277,5.96552353,1930.8,1929.6,8.1427557]
[1772972247482,5.96552353,1930.8,1929.8,8.1427557]
[1772972247782,7.76625505,1930.9,1929.8,8.1427557]
[1772972247983,7.76625505,1930.7,1929.8,8.1427557]
[1772972248682,7.76625505,1930.5,1929.8,8.1427557]
[1772972249178,0.00482295,1931.0,1929.8,8.1427557]
[1772972249179,6.761,1930.7,1929.8,8.1427557]
[1772972249885,7.76625505,1930.6,1929.8,8.1427557]
[1772972250185,14.52725505,1930.8,1929.8,8.1427557]
[1772972250778,7.76625505,1930.7,1929.8,8.1427557]
[1772972251282,7.76625505,1930.9,1929.8,8.1427557]
[1772972251584,14.52725505,1930.9,1929.8,8.1427557]
[1772972251780,7.76625505,1930.9,1929.8,8.1427557]
[1772972252482,0.00482295,1931.0,1929.8,8.1427557]
[1772972252676,0.00482295,1931.0,1930.0,7.55120054]
[1772972252876,0.00482295,1931.0,1930.0,7.5550915]
[1772972253076,0.00482295,1931.0,1930.2,7.55120054]
[1772972253276,7.7791145,1931.0,1930.2,7.55120054]
[1772972253788,0.00482295,1931.0,1930.2,7.55120054]
[1772972254287,7.77429155,1931.4,1930.2,7.55120054]
[1772972254686,7.77429155,1931.9,1930.2,7.55120054]
[1772972254988,7.77429155,1931.7,1930.4,7.55120054]
[1772972255187,7.77899982,1931.7,1930.4,7.55120054]
[1772972255388,5.60662046,1931.6,1930.4,7.55120054]
[1772972255590,14.53529155,1931.6,1930.4,7.55120054]
[1772972255995,7.77429155,1931.4,1930.4,7.55120054]
[1772972257183,5.62812208,1931.3,1930.4,7.55120054]
[1772972257382,7.77429155,1931.2,1930.4,7.55120054]
[1772972257588,13.40241363,1931.3,1930.4,7.55120054]
[1772972257787,5.62812208,1931.1,1930.4,7.55120054]
[1772972257988,14.53529155,1931.3,1930.4,7.55120054]
[1772972258187,7.77429155,1931.5,1930.4,7.55120054]
[1772972258793,7.77429155,1931.6,1930.4,7.55120054]
[1772972259290,0.00470827,1931.7,1930.6,7.55120054]
[1772972260291,7.77899982,1931.7,1930.6,7.55120054]
[1772972261390,0.00470827,1931.7,1930.8,7.55120054]
[1772972261591,7.77899982,1931.7,1930.8,7.55120054]
[1772972262786,0.00470827,1931.7,1930.8,7.55120054]
[1772972263294,7.77429155,1932.1,1931.0,7.55120054]
[1772972263682,7.77429155,1931.9,1931.0,7.55120054]
[1772972263885,5.82930292,1932.0,1931.0,7.55120054]
[1772972264090,7.77429155,1931.8,1931.0,7.55120054]
[1772972264392,7.77820464,1931.8,1931.0,7.55120054]
[1772972265192,7.77820464,1931.8,1930.3,0.25903]
[1772972265493,7.77429155,1931.6,1930.5,7.55120054]
[1772972265795,6.761,1931.7,1930.6,5.81587675]
[1772972265990,6.761,1931.7,1930.7,7.55120054]
[1772972266989,0.00391309,1931.8,1930.8,5.87912149]
[1772972267194,0.00391309,1931.8,1930.9,7.55120054]
[1772972267887,7.77820464,1931.8,1930.9,7.55120054]
[1772972268792,0.00391309,1931.8,1930.9,7.55120054]
[1772972269392,0.00391309,1931.8,1931.1,7.55120054]
[1772972269696,7.77429155,1932.2,1931.1,7.55120054]
[1772972269891,6.761,1932.3,1931.1,7.55120054]
[1772972270088,7.77429155,1932.4,1931.1,7.55120054]
[1772972270289,5.91314154,1932.2,1931.1,7.55120054]
[1772972270495,13.68743309,1932.3,1931.1,7.55120054]
[1772972270692,7.77841394,1932.3,1931.1,7.55120054]
[1772972270893,0.00412239,1932.3,1931.3,7.55120054]
[1772972271194,14.53941394,1932.3,1931.3,7.55120054]
[1772972271393,7.77429155,1932.1,1931.3,7.55120054]
[1772972272099,7.77429155,1931.9,1931.3,7.55120054]
[1772972272486,5.60019683,1932.2,1931.3,7.55120054]
[1772972272793,7.77429155,1932.1,1931.3,7.55120054]
[1772972274092,7.77429155,1932.1,1930.7,7.55120054]
[1772972274093,5.74540854,1932.0,1930.7,7.55120054]
[1772972274295,7.77429155,1931.8,1930.7,7.55120054]
[1772972274694,7.77429155,1931.8,1930.9,7.55120054]
[1772972276797,7.77429155,1932.1,1930.9,7.55120054]
[1772972277099,7.77429155,1932.2,1931.1,7.55120054]
[1772972277602,7.77429155,1932.1,1931.1,7.55120054]
[1772972278396,7.77841394,1932.3,1931.1,7.55120054]
[1772972278600,14.54041394,1932.3,1931.1,7.55120054]
[1772972279396,7.77429155,1932.2,1931.1,7.55120054]
[1772972279601,7.77429155,1932.1,1931.1,7.55120054]
[1772972281097,7.77429155,1931.9,1931.1,7.55120054]
[1772972282399,7.77429155,1931.8,1931.1,7.55120054]
[1772972282700,7.49621787,1932.1,1931.1,7.55120054]
[1772972283006,0.00412239,1932.3,1931.3,7.90209967]
[1772972283400,0.00412239,1932.3,1931.5,7.90209967]
[1772972283601,0.00412239,1932.3,1931.5,7.90857808]
[1772972284305,7.80875895,1932.3,1931.5,7.90857808]
[1772972288004,7.80463656,1932.1,1931.1,7.22884152]
[1772972288305,5.83491437,1932.2,1931.1,7.22884152]
[1772972288509,7.80463656,1932.2,1931.1,7.22884152]
[1772972289104,7.80463656,1932.2,1931.1,7.233464]
[1772972289808,7.80463656,1932.0,1931.1,7.233464]
[1772972290405,6.76612239,1932.3,1931.1,0.00462248]
[1772972290406,7.80463656,1931.8,1931.1,0.00462248]
[1772972290606,7.80463656,1931.7,1931.1,0.00462248]
[1772972291906,7.80463656,1932.2,1931.1,7.233464]
[1772972292111,7.80463656,1932.0,1931.1,7.233464]
[1772972293413,7.80463656,1931.8,1931.1,0.00462248]
[1772972294208,7.80463656,1931.6,1931.1,0.00462248]
[1772972294912,7.80463656,1931.6,1931.1,7.233464]
[1772972295507,7.80463656,1932.6,1931.1,7.233464]
[1772972295815,7.80463656,1932.6,1931.3,7.22884152]
[1772972296012,7.80463656,1932.6,1931.5,7.22884152]
[1772972296613,7.80463656,1933.0,1931.5,7.22884152]
[1772972296815,7.81026887,1933.0,1931.7,7.22884152]
[1772972297010,5.71555557,1932.9,1931.7,7.22884152]
[1772972297208,7.80463656,1932.8,1931.7,7.22884152]
[1772972297507,0.00563231,1933.0,1931.7,7.22884152]
[1772972297508,7.81026887,1933.0,1931.7,7.22884152]
[1772972298110,7.81026887,1933.0,1931.8,5.87539425]
[1772972298313,0.00563231,1933.0,1931.9,7.22884152]
[1772972298814,0.00563231,1933.0,1932.1,7.22884152]
[1772972299212,7.80463656,1932.8,1931.9,13.14687738]
[1772972299416,7.80463656,1932.8,1931.9,7.22884152]
[1772972299818,7.81026887,1933.0,1931.9,7.22884152]
[1772972301716,7.80463656,1932.8,1931.9,7.22884152]
[1772972302315,7.80463656,1932.7,1931.9,7.22884152]
[1772972303215,7.80463656,1932.9,1931.9,7.22884152]
[1772972304613,7.80463656,1932.7,1931.9,7.22884152]
[1772972304813,7.80463656,1932.6,1931.9,7.22884152]
[1772972307310,7.80463656,1932.6,1931.2,41.05891]
[1772972307514,7.80463656,1932.6,1931.3,7.22884152]
[1772972307716,7.80463656,1932.4,1931.4,7.22884152]
[1772972307915,7.80463656,1932.2,1931.1,0.00462248]
[1772972308110,7.80463656,1932.2,1931.2,7.22884152]
[1772972308315,7.80463656,1932.0,1931.2,7.22884152]
[1772972308912,7.80463656,1931.8,1931.2,7.22884152]
[1772972310811,0.00563231,1933.0,1931.2,7.22884152]
[1772972310812,7.80463656,1932.3,1931.2,7.22884152]
[1772972311316,7.80463656,1932.1,1931.2,7.22884152]
[1772972311515,7.80463656,1932.3,1931.2,7.22884152]
[1772972311913,14.56863656,1932.5,1931.4,7.22884152]
[1772972312118,7.80463656,1932.5,1931.5,7.22884152]
[1772972312420,7.80463656,1932.5,1931.6,7.22884152]
[1772972312718,7.16965494,1932.8,1931.6,7.22884152]
[1772972313119,7.16965494,1932.7,1931.6,7.22884152]
[1772972313418,13.93365494,1932.6,1931.6,7.22884152]
[1772972313824,7.16965494,1932.6,1931.6,7.22884152]
[1772972314417,7.16965494,1932.4,1931.6,7.22884152]
[1772972314621,7.16965494,1932.3,1931.6,7.22884152]
[1772972315413,7.16965494,1932.3,1931.2,7.42917277]
[1772972316718,7.16965494,1932.2,1931.2,7.42917277]
[1772972317916,0.26431231,1933.0,1931.2,7.42917277]
[1772972317917,7.16965494,1932.4,1931.2,7.42917277]
[1772972318123,7.16965494,1932.4,1931.3,5.67162089]
[1772972318324,7.16965494,1932.4,1931.4,7.42917277]
[1772972318822,7.16965494,1932.6,1931.5,5.67014721]
[1772972319023,7.16965494,1932.6,1931.6,7.42917277]
[1772972320422,13.93465494,1932.8,1931.6,7.42917277]
[1772972320618,7.16965494,1932.8,1931.7,5.44218579]
[1772972320818,7.16965494,1932.8,1931.8,7.42917277]
[1772972321024,7.17528725,1933.0,1931.9,7.42917277]
[1772972321223,7.17528725,1933.0,1931.9,12.87135856]
[1772972321425,7.17528725,1933.0,1932.0,7.42917277]
[1772972321620,0.00563231,1933.0,1932.0,7.42917277]
[1772972321827,0.00563231,1933.0,1932.2,7.42917277]
[1772972322022,7.16965494,1933.4,1932.2,7.42917277]
[1772972322323,7.16965494,1933.3,1932.4,7.42917277]
[1772972322528,7.16965494,1933.2,1932.4,7.42917277]
[1772972323027,0.00652809,1933.2,1932.4,7.42917277]
[1772972324024,7.17618303,1933.2,1932.4,7.42917277]
[1772972324928,7.16965494,1933.0,1931.9,7.42917277]
[1772972325330,6.764,1933.0,1932.1,7.42917277]
[1772972325528,7.16965494,1933.0,1932.1,7.42917277]
[1772972327529,7.16965494,1933.0,1931.9,7.42917277]
[1772972327733,7.16965494,1932.8,1931.9,7.42917277]
[1772972328532,7.16965494,1932.6,1931.9,7.42917277]
[1772972331939,7.16965494,1933.0,1931.9,7.42917277]
[1772972332139,7.16965494,1933.1,1932.1,7.42917277]
[1772972333239,0.00652809,1933.2,1932.3,7.42917277]
[1772972333443,7.17618303,1933.2,1932.3,7.42917277]
[1772972334643,0.00652809,1933.2,1932.3,7.42917277]
[1772972336245,7.17618303,1933.2,1932.3,7.42917277]
[1772972337245,0.00652809,1933.2,1932.3,7.42917277]
[1772972337847,0.00652809,1933.2,1932.5,7.42917277]
[1772972338046,0.00652809,1933.2,1932.5,7.43538279]
[1772972339144,7.16965494,1933.8,1932.6,5.78652768]
[1772972339348,7.16965494,1933.8,1932.7,7.42917277]
[1772972339551,7.16965494,1933.8,1932.9,7.42917277]
[1772972340147,7.17340412,1933.8,1932.9,7.42917277]
[1772972340347,5.99945724,1933.7,1932.9,7.42917277]
[1772972340548,0.00374918,1933.8,1933.1,7.42917277]
[1772972340751,7.17340412,1933.8,1933.1,7.42917277]
[1772972342548,0.00374918,1933.8,1933.1,7.42917277]
[1772972342754,0.00374918,1933.8,1933.3,7.43779329]
[1772972342952,7.47644551,1933.8,1933.1,7.43779329]
[1772972344456,7.35420286,1933.8,1933.1,7.43779329]
[1772972345354,7.35420286,1933.8,1932.8,7.11553004]
[1772972346556,0.00374918,1933.8,1933.0,7.11553004]
[1772972346958,7.35045368,1934.2,1933.2,7.11553004]
[1772972347455,12.93618971,1934.1,1933.2,7.11553004]
[1772972347656,7.35045368,1934.3,1933.2,7.11553004]
[1772972347864,7.35593407,1934.3,1933.2,7.11553004]
[1772972348065,7.35593407,1934.3,1933.4,7.11553004]
[1772972349756,0.00548039,1934.3,1933.4,7.11553004]
[1772972350365,7.35593407,1934.3,1933.4,7.11553004]
[1772972353666,7.35045368,1934.1,1932.9,7.11553004]
[1772972354064,7.35045368,1933.9,1932.9,7.11553004]
[1772972361073,7.35045368,1933.7,1932.6,7.11553004]
[1772972364275,7.35045368,1933.5,1932.6,7.11553004]
[1772972364470,5.39460956,1933.6,1932.2,7.11553004]
[1772972364471,7.35045368,1933.3,1932.2,7.11553004]
[1772972364873,5.39460956,1933.2,1932.0,24.57453004]
[1772972365075,7.35045368,1933.1,1932.0,24.57453004]
[1772972365278,7.35045368,1932.9,1932.0,24.57453004]
[1772972365776,7.35045368,1932.7,1932.0,24.57929451]
[1772972366575,6.77253783,1932.9,1932.1,7.11553004]
[1772972366576,0.00653783,1932.9,1932.1,7.11553004]
[1772972366879,7.35699151,1932.9,1932.1,7.11553004]
[1772972367578,7.35045368,1932.7,1932.1,7.11553004]
[1772972368174,7.35699151,1932.9,1932.1,7.11553004]
[1772972369277,0.00653783,1932.9,1932.1,7.11553004]
[1772972370378,7.35045368,1933.2,1932.3,7.11553004]
[1772972370571,7.35045368,1933.7,1932.5,7.11553004]
[1772972371380,7.3571296,1933.7,1932.5,7.11553004]
[1772972372074,7.3571296,1933.7,1932.7,7.11553004]
[1772972377186,7.3571296,1933.7,1932.8,7.14936171]
[1772972377382,7.3571296,1933.7,1933.0,7.14936171]
[1772972378086,0.00667592,1933.7,1933.0,7.14936171]
[1772972379184,6.91849278,1934.1,1933.0,7.14936171]
[1772972379483,10.12,1934.3,1932.9,17.486]